bitfinex/quotes_BTCUSD_20220201
["timestamp","ask_amount","ask_price","bid_price","bid_amount"]
[1643758394946,0.00136378,38883.0,38878.0,0.074281]
[1643758395143,0.00136378,38883.0,38878.0,0.32732533]
[1643758395382,0.00136378,38883.0,38878.0,0.16479276]
[1643758395683,0.00136378,38883.0,38878.0,0.074281]
[1643758396082,1.0693089,38884.0,38878.0,0.074281]
[1643758396284,0.00136378,38883.0,38878.0,0.074281]
[1643758396987,0.00136378,38883.0,38878.0,0.01]
[1643758396988,0.346975,38882.0,38878.0,0.01]
[1643758397187,0.346975,38882.0,38878.0,0.0001]
[1643758397188,0.09438233,38881.0,38878.0,0.0001]
[1643758397387,0.04898948,38879.0,38878.0,0.0001]
[1643758397591,0.14262829,38878.0,38872.0,0.03152]
[1643758397788,0.23856086,38874.0,38872.0,0.03152]
[1643758397984,0.346975,38873.0,38872.0,0.03152]
[1643758398785,0.66457001,38874.0,38872.0,0.03152]
[1643758399041,0.346975,38873.0,38872.0,0.03152]
[1643758399235,0.064302,38877.0,38872.0,0.095816]
[1643758399435,0.346975,38876.0,38872.0,0.095816]
[1643758400035,0.23504576,38875.0,38872.0,0.095816]
[1643758400243,0.10576496,38888.0,38873.0,0.5]
[1643758400439,0.00576496,38888.0,38876.0,0.064289]
[1643758400642,0.01,38883.0,38877.0,0.398582]
[1643758401237,0.01,38883.0,38878.0,0.28915454]
[1643758401438,0.01,38883.0,38879.0,0.25795921]
[1643758401637,0.01,38883.0,38879.0,0.38652821]
[1643758401837,0.002,38885.0,38879.0,0.38652821]
[1643758402037,0.002,38885.0,38879.0,0.33492821]
[1643758402437,0.26742601,38881.0,38879.0,0.128569]
[1643758402636,0.08353585,38885.0,38881.0,0.01]
[1643758402904,0.324252,38884.0,38881.0,0.01]
[1643758403095,0.40584771,38884.0,38881.0,0.01]
[1643758403493,0.324252,38884.0,38881.0,0.01]
[1643758403692,0.2,38882.0,38881.0,0.01]
[1643758404294,0.002,38885.0,38882.0,0.064281]
[1643758404696,0.00336034,38885.0,38882.0,0.064281]
[1643758405694,0.002,38885.0,38882.0,0.064281]
[1643758405896,0.00836039,38887.0,38883.0,0.18403001]
[1643758406096,0.00836039,38887.0,38885.0,0.128538]
[1643758406297,0.00836039,38887.0,38886.0,0.346982]
[1643758406586,0.0016396,38890.0,38888.0,0.2]
[1643758406778,0.0016396,38890.0,38889.0,0.54314585]
[1643758406976,0.0016396,38890.0,38889.0,0.90616155]
[1643758407380,0.001,38900.0,38893.0,0.06425]
[1643758407580,0.001,38900.0,38894.0,0.58328564]
[1643758407779,0.001,38900.0,38896.0,0.01901281]
[1643758407978,0.001,38900.0,38898.0,0.20088]
[1643758408282,0.001,38900.0,38897.0,0.398582]
[1643758408283,0.001,38900.0,38899.0,0.341982]
[1643758408477,0.001,38900.0,38898.0,0.511221]
[1643758408679,0.001,38900.0,38898.0,0.411221]
[1643758408680,0.0071197,38900.0,38898.0,0.411221]
[1643758408882,0.0071197,38900.0,38898.0,0.064239]
[1643758409078,0.0071197,38900.0,38896.0,0.01901281]
[1643758409079,0.309246,38899.0,38896.0,0.01901281]
[1643758409281,0.0071197,38900.0,38896.0,0.01901281]
[1643758409479,0.00608532,38898.0,38896.0,0.08327381]
[1643758409679,0.00610251,38899.0,38897.0,0.59241122]
[1643758409879,0.001,38900.0,38897.0,0.59241122]
[1643758410080,0.001,38900.0,38898.0,0.128492]
[1643758410293,0.001,38900.0,38897.0,0.01]
[1643758410294,0.00610251,38899.0,38897.0,0.01]
[1643758410491,0.38406895,38898.0,38897.0,0.01]
[1643758410798,0.39015427,38898.0,38897.0,0.01]
[1643758410995,0.065261,38900.0,38897.0,0.01]
[1643758411202,0.065261,38900.0,38898.0,0.26981275]
[1643758411203,0.001,38900.0,38898.0,0.26981275]
[1643758411392,0.001,38900.0,38899.0,0.398376]
[1643758411594,0.001,38900.0,38899.0,0.0516]
[1643758411793,0.001,38900.0,38898.0,0.26981275]
[1643758411992,0.001,38900.0,38898.0,0.128496]
[1643758412293,0.29169446,38899.0,38898.0,0.128496]
[1643758413091,0.29169446,38899.0,38897.0,0.138496]
[1643758413499,0.34169446,38899.0,38897.0,0.01]
[1643758413891,0.50146377,38898.0,38897.0,0.01]
[1643758414143,0.73300237,38898.0,38897.0,0.01]
[1643758414645,0.064268,38897.0,38893.0,0.14698244]
[1643758414849,0.3,38894.0,38884.0,0.43416109]
[1643758415044,0.2885993,38893.0,38884.0,0.17716909]
[1643758415244,0.2885993,38893.0,38882.0,0.00149873]
[1643758415245,0.09633317,38892.0,38878.0,0.01]
[1643758415442,0.09633317,38892.0,38882.0,0.00149857]
[1643758415443,0.28042296,38887.0,38882.0,0.00149857]
[1643758415643,0.31131699,38884.0,38882.0,0.00149857]
[1643758415846,0.29543965,38883.0,38882.0,0.00149857]
[1643758416050,0.09543965,38883.0,38882.0,0.00149857]
[1643758416246,0.09543965,38883.0,38882.0,0.06578057]
[1643758416544,0.09543965,38883.0,38882.0,0.064282]
[1643758417146,0.29353381,38883.0,38882.0,0.064282]
[1643758417345,0.29717868,38883.0,38882.0,0.064282]
[1643758417785,0.49717868,38883.0,38882.0,0.064282]
[1643758418786,0.2957873,38883.0,38882.0,0.064282]
[1643758418986,0.09543965,38883.0,38882.0,0.064282]
[1643758419386,0.29512235,38883.0,38882.0,0.064282]
[1643758419788,0.49512235,38883.0,38882.0,0.064282]
[1643758420987,0.5436336,38883.0,38882.0,0.064282]
[1643758421191,0.5936336,38883.0,38882.0,0.064282]
[1643758421387,0.34512235,38883.0,38882.0,0.064282]
[1643758421650,0.18767989,38883.0,38882.0,0.064282]
[1643758421848,0.63877302,38883.0,38882.0,0.064282]
[1643758422050,0.39543965,38883.0,38882.0,0.064282]
[1643758422252,0.09543965,38883.0,38882.0,0.064282]
[1643758422450,0.31131699,38884.0,38882.0,0.064282]
[1643758422649,0.03610661,38885.0,38882.0,0.064282]
[1643758422851,0.01,38886.0,38882.0,0.064282]
[1643758423449,0.09827529,38885.0,38882.0,0.064282]
[1643758423652,0.22115755,38883.0,38882.0,0.064282]
[1643758423953,0.22115755,38883.0,38882.0,0.06578048]
[1643758424351,0.47730896,38883.0,38882.0,0.06578048]
[1643758424551,0.64184462,38883.0,38882.0,0.06578048]
[1643758424752,0.64184462,38883.0,38882.0,0.064282]
[1643758425384,0.22115755,38883.0,38882.0,0.064282]
[1643758426186,0.25617078,38883.0,38882.0,0.064282]
[1643758426487,0.53243785,38883.0,38882.0,0.064282]
[1643758426884,0.49742462,38883.0,38882.0,0.064282]
[1643758427085,0.22115755,38883.0,38882.0,0.064282]
[1643758428286,0.01,38886.0,38882.0,0.064282]
[1643758428485,0.04011293,38887.0,38882.0,0.064282]
[1643758428685,0.04146983,38887.0,38882.0,0.064282]
[1643758429336,0.28510733,38884.0,38882.0,0.064282]
[1643758430744,0.01135692,38887.0,38883.0,0.346776]
[1643758431042,0.01135692,38887.0,38885.0,0.128526]
[1643758431243,0.01135692,38887.0,38886.0,0.58922925]
[1643758431642,0.00135692,38887.0,38886.0,0.58922925]
[1643758431838,0.00135692,38887.0,38886.0,0.8637242]
[1643758432039,0.2260279,38893.0,38886.0,0.95637358]
[1643758432239,0.2260279,38893.0,38888.0,0.064262]
[1643758432891,0.26439307,38893.0,38888.0,0.064262]
[1643758433089,0.2260279,38893.0,38888.0,0.064262]
[1643758433291,0.26237184,38893.0,38888.0,0.064262]
[1643758433490,0.00135699,38892.0,38889.0,0.01]
[1643758433692,0.04991815,38892.0,38889.0,0.01]
[1643758433896,0.00135699,38892.0,38889.0,0.01]
[1643758434090,0.4007258,38890.0,38889.0,0.138538]
[1643758434893,0.3,38890.0,38889.0,0.138538]
[1643758435895,0.3,38890.0,38889.0,0.128538]
[1643758436094,0.37759944,38890.0,38889.0,0.128538]
[1643758436735,0.37753091,38890.0,38889.0,0.128538]
[1643758438140,0.29993147,38890.0,38889.0,0.128538]
[1643758439141,0.40060983,38890.0,38889.0,0.128538]
[1643758441213,0.45060983,38890.0,38889.0,0.128538]
[1643758441413,0.40060983,38890.0,38889.0,0.128538]
[1643758442220,0.45060983,38890.0,38889.0,0.128538]
[1643758442414,0.45060983,38890.0,38873.0,0.21838416]
[1643758442415,0.5,38889.0,38873.0,0.21838416]
[1643758442620,0.5,38889.0,38862.0,0.02038545]
[1643758442621,0.05,38882.0,38862.0,0.02038545]
[1643758442824,0.34770344,38881.0,38863.0,0.5]
[1643758443018,0.34770344,38881.0,38863.0,0.00695399]
[1643758443019,0.39770344,38881.0,38863.0,0.00695399]
[1643758443213,0.09008084,38857.0,38856.0,0.11252589]
[1643758443416,0.28075625,38861.0,38855.0,0.75011966]
[1643758443611,0.05,38860.0,38855.0,0.75011966]
[1643758443816,0.05,38860.0,38854.0,0.00695399]
[1643758444049,0.09722193,38860.0,38854.0,0.00695399]
[1643758444241,0.09722193,38860.0,38856.0,0.00081859]
[1643758444640,0.23422163,38859.0,38856.0,0.00081859]
[1643758444848,0.28422163,38859.0,38856.0,0.00081859]
[1643758445239,0.28391301,38859.0,38853.0,0.26849601]
[1643758445441,0.23610644,38858.0,38856.0,0.00081859]
[1643758446438,0.23610644,38858.0,38852.0,0.09840466]
[1643758446640,0.30043744,38858.0,38856.0,0.30523362]
[1643758446844,0.04992193,38860.0,38857.0,0.00695399]
[1643758447044,0.0473,38865.0,38859.0,0.00695399]
[1643758447243,0.01929955,38868.0,38857.0,0.19274696]
[1643758447444,0.01929955,38868.0,38860.0,0.064309]
[1643758447641,0.07976596,38863.0,38856.0,0.01695399]
[1643758447889,0.23452262,38862.0,38861.0,0.00149705]
[1643758448089,0.07976596,38863.0,38861.0,0.00149705]
[1643758448288,0.58224656,38862.0,38861.0,0.00149705]
[1643758448690,0.81676918,38862.0,38861.0,0.00149705]
[1643758448888,1.02815688,38862.0,38860.0,0.005]
[1643758449091,0.29122207,38861.0,38860.0,0.00649707]
[1643758449292,0.59122207,38861.0,38853.0,0.128643]
[1643758449491,0.59122207,38861.0,38856.0,0.01]
[1643758449690,0.0473,38860.0,38856.0,0.01]
[1643758449888,0.26831776,38859.0,38856.0,0.01]
[1643758450093,0.31831776,38859.0,38856.0,0.01]
[1643758450290,0.72002097,38857.0,38856.0,0.01]
[1643758450488,1.01482598,38857.0,38856.0,0.01]
[1643758450689,0.96482598,38857.0,38846.0,0.07129399]
[1643758450888,0.29309163,38849.0,38846.0,0.07129399]
[1643758451391,0.22553129,38855.0,38846.0,0.07129399]
[1643758451644,0.22553129,38855.0,38849.0,0.01]
[1643758451645,0.24543209,38854.0,38849.0,0.01]
[1643758452046,0.25473553,38857.0,38852.0,0.00695399]
[1643758452247,0.04492238,38856.0,38852.0,0.00695399]
[1643758452446,0.04222591,38857.0,38856.0,0.24794444]
[1643758452650,0.04555583,38857.0,38856.0,0.24794444]
[1643758452846,0.01,38858.0,38856.0,0.24794444]
[1643758453145,0.04658829,38857.0,38855.0,0.10313694]
[1643758453346,0.04658829,38857.0,38855.0,0.064324]
[1643758453544,0.04658829,38857.0,38856.0,0.00695399]
[1643758453751,0.04429822,38856.0,38853.0,0.01974274]
[1643758453947,0.77760626,38855.0,38854.0,0.00149531]
[1643758454147,0.79693127,38855.0,38854.0,0.00149531]
[1643758454546,0.8715722,38855.0,38854.0,0.00149531]
[1643758454946,0.8715722,38855.0,38853.0,0.01974274]
[1643758455150,0.79693127,38855.0,38853.0,0.02123809]
[1643758455785,0.84693127,38855.0,38853.0,0.00149535]
[1643758455988,0.20645613,38854.0,38849.0,0.01]
[1643758456187,0.20645613,38854.0,38852.0,0.00149536]
[1643758456885,0.1965431,38854.0,38853.0,0.00695399]
[1643758457088,0.01,38858.0,38853.0,0.00695399]
[1643758457289,0.01,38858.0,38857.0,0.00695399]
[1643758457488,0.26,38858.0,38857.0,0.00695399]
[1643758457890,0.5045288,38858.0,38857.0,0.00695399]
[1643758459135,0.5045288,38858.0,38856.0,0.00149528]
[1643758459335,0.4945288,38858.0,38857.0,0.0797695]
[1643758460536,0.01,38861.0,38857.0,0.08672349]
[1643758460738,0.01,38861.0,38859.0,0.00695399]
[1643758461738,0.05,38865.0,38859.0,0.00695399]
[1643758461940,1.10456366,38869.0,38864.0,0.07126299]
[1643758461941,0.848115,38869.0,38864.0,0.07126299]
[1643758462141,0.064315,38869.0,38868.0,0.00695399]
[1643758462341,0.064315,38869.0,38864.0,0.064309]
[1643758462538,0.064315,38869.0,38866.0,0.00695399]
[1643758464286,0.04836847,38868.0,38866.0,0.00695399]
[1643758464586,0.25,38867.0,38866.0,0.00695399]
[1643758464786,0.3,38867.0,38866.0,0.00695399]
[1643758465387,0.5,38867.0,38866.0,0.00695399]
[1643758468944,0.50014252,38867.0,38866.0,0.00695399]
[1643758469541,0.30014252,38867.0,38866.0,0.00695399]
[1643758469743,0.30004817,38867.0,38866.0,0.00695399]
[1643758470041,0.30004817,38867.0,38865.0,0.01]
[1643758470290,0.30004817,38867.0,38866.0,0.00695399]
[1643758470991,0.30004817,38867.0,38865.0,0.08761838]
[1643758471190,0.30004817,38867.0,38866.0,0.00695399]
[1643758471789,0.25014252,38867.0,38866.0,0.00695399]
[1643758472390,0.25014252,38867.0,38865.0,0.08761838]
[1643758472689,0.25014252,38867.0,38866.0,0.00695399]
[1643758472891,0.25014252,38867.0,38865.0,0.01]
[1643758473893,0.25014252,38867.0,38866.0,0.00695399]
[1643758475241,0.50014252,38867.0,38866.0,0.00695399]
[1643758476043,0.50014252,38867.0,38865.0,0.01]
[1643758476044,0.74196558,38867.0,38865.0,0.01]
[1643758476246,0.74795503,38866.0,38858.0,0.00149534]
[1643758476443,0.74795503,38866.0,38855.0,0.00695399]
[1643758476444,0.064329,38860.0,38855.0,0.00695399]
[1643758476647,0.30240292,38857.0,38855.0,0.00695399]
[1643758476844,0.55738721,38857.0,38855.0,0.00695399]
[1643758477144,0.30240292,38857.0,38855.0,0.00695399]
[1643758477546,0.36673492,38857.0,38855.0,0.01]
[1643758477799,0.41673492,38857.0,38855.0,0.01]
[1643758477997,0.51378996,38856.0,38855.0,0.01]
[1643758478600,0.51378996,38856.0,38854.0,0.0084493]
[1643758478601,0.7877547,38856.0,38854.0,0.0084493]
[1643758478797,0.51432181,38855.0,38854.0,0.0084493]
[1643758478998,0.56432181,38855.0,38854.0,0.00695399]
[1643758479899,0.51432181,38855.0,38854.0,0.00695399]
[1643758480101,0.21432181,38855.0,38854.0,0.00695399]
[1643758480302,0.21774994,38859.0,38854.0,0.07128099]
[1643758480502,0.01,38859.0,38858.0,0.00695399]
[1643758480701,0.3691,38865.0,38858.0,0.00695399]
[1643758480903,0.3691,38865.0,38864.0,0.00695399]
[1643758481101,0.3691,38865.0,38864.0,0.09900394]
[1643758481544,0.00014252,38867.0,38864.0,0.09900394]
[1643758481940,0.00014252,38867.0,38864.0,0.09204995]
[1643758482142,0.00014252,38867.0,38866.0,0.00695399]
[1643758482342,0.00014252,38867.0,38861.0,0.00695399]
[1643758483343,0.00014252,38867.0,38859.0,0.08244717]
[1643758483344,0.30224317,38863.0,38859.0,0.15607001]
[1643758483546,0.30224317,38863.0,38862.0,0.00695399]
[1643758485489,0.074319,38866.0,38862.0,0.00695399]
[1643758486490,0.2534422,38865.0,38862.0,0.00695399]
[1643758487191,0.064319,38866.0,38862.0,0.064314]
[1643758488391,0.064319,38866.0,38863.0,0.00695399]
[1643758488598,0.19453902,38865.0,38862.0,0.064314]
[1643758488792,0.064319,38866.0,38862.0,0.064314]
[1643758489643,0.00014271,38865.0,38862.0,0.064314]
[1643758490242,0.00014271,38865.0,38864.0,0.00695399]
[1643758493092,0.25014271,38865.0,38864.0,0.00695399]
[1643758494001,0.00014271,38865.0,38864.0,0.00695399]
[1643758494193,0.00014271,38865.0,38862.0,0.07126799]
[1643758494997,0.00014271,38865.0,38862.0,0.064314]
[1643758495203,0.00014271,38865.0,38864.0,0.00695399]
[1643758495895,0.30014271,38865.0,38864.0,0.00695399]
[1643758496554,0.49354379,38865.0,38864.0,0.00695399]
[1643758496746,0.30014271,38865.0,38864.0,0.00695399]
[1643758497947,0.00014271,38865.0,38864.0,0.00695399]
[1643758498349,0.00014271,38865.0,38864.0,0.35372999]
[1643758498749,0.01,38868.0,38864.0,0.35372999]
[1643758498948,0.01,38868.0,38865.0,0.128598]
[1643758499153,0.01,38868.0,38867.0,0.00695399]
[1643758499548,0.43548023,38872.0,38867.0,0.00695399]
[1643758499749,0.43548023,38872.0,38868.0,0.064303]
[1643758500150,0.43548023,38872.0,38871.0,0.00695399]
[1643758500396,0.48200393,38872.0,38868.0,0.064303]
[1643758500596,0.48200393,38872.0,38868.0,0.07125699]
[1643758500797,0.0394322,38870.0,38868.0,0.00695399]
[1643758501597,0.0394322,38870.0,38868.0,0.01695399]
[1643758501802,0.19532523,38872.0,38868.0,0.08125799]
[1643758501998,0.2477524,38873.0,38868.0,0.074304]
[1643758501999,0.01107468,38873.0,38868.0,0.074304]
[1643758502497,0.00107468,38873.0,38872.0,0.00695399]
[1643758502697,0.00107468,38873.0,38872.0,0.08359744]
[1643758502898,0.3,38873.0,38872.0,0.07664345]
[1643758503099,0.3,38873.0,38872.0,0.08359744]
[1643758503301,0.00107473,38874.0,38872.0,0.08359744]
[1643758503500,0.00107473,38874.0,38872.0,0.14789544]
[1643758504146,0.01,38876.0,38872.0,0.14789544]
[1643758504351,0.00107473,38875.0,38872.0,0.13594145]
[1643758504546,0.00107473,38875.0,38874.0,0.00695399]
[1643758505045,0.20107473,38875.0,38874.0,0.00695399]
[1643758505446,0.26690299,38879.0,38874.0,0.00695399]
[1643758505648,0.00107473,38876.0,38872.0,0.13594145]
[1643758505847,0.00107473,38876.0,38875.0,0.00695399]
[1643758506046,0.00107473,38876.0,38875.0,0.13552199]
[1643758506648,0.28293498,38878.0,38875.0,0.13552199]
[1643758506649,0.27293498,38878.0,38875.0,0.13552199]
[1643758506851,0.00112616,38877.0,38875.0,0.13552199]
[1643758507649,0.27293498,38878.0,38875.0,0.13552199]
[1643758507899,0.27406114,38878.0,38875.0,0.13552199]
[1643758508699,0.00112616,38878.0,38875.0,0.128568]
[1643758508901,0.25825071,38879.0,38877.0,0.00666481]
[1643758509200,0.25825071,38879.0,38878.0,0.00623123]
[1643758511103,0.00111484,38880.0,38878.0,0.00623123]
[1643758511302,0.43095658,38881.0,38879.0,0.064287]
[1643758511559,0.49384448,38880.0,38879.0,0.064287]
[1643758511952,0.3,38880.0,38879.0,0.064287]
[1643758512150,0.00111484,38881.0,38879.0,0.064287]
[1643758512351,0.00111484,38881.0,38879.0,0.05862655]
[1643758512551,0.001,38882.0,38880.0,0.13478923]
[1643758512851,0.00211484,38882.0,38880.0,0.13478923]
[1643758513451,0.19496276,38882.0,38880.0,0.13478923]
[1643758513649,0.19384792,38882.0,38880.0,0.13478923]
[1643758514152,0.001,38882.0,38880.0,0.13478923]
[1643758515299,0.001,38882.0,38880.0,0.128558]
[1643758515702,0.251,38882.0,38881.0,0.00623123]
[1643758516701,0.251,38882.0,38880.0,0.128558]
[1643758517801,0.251,38882.0,38880.0,0.13478923]
[1643758518601,0.49327715,38881.0,38880.0,0.128558]
[1643758518803,0.49327715,38881.0,38879.0,0.128558]
[1643758519051,0.80725599,38880.0,38879.0,0.128558]
[1643758519544,0.61256805,38880.0,38879.0,0.128558]
[1643758520145,0.61256805,38880.0,38879.0,0.13448224]
[1643758520947,0.065289,38882.0,38879.0,0.13448224]
[1643758521249,0.00111646,38881.0,38879.0,0.12825101]
[1643758521449,0.00111646,38881.0,38880.0,0.00623123]
[1643758522251,0.001,38882.0,38880.0,0.13478823]
[1643758522447,0.00211646,38882.0,38880.0,0.13478823]
[1643758523297,0.001,38882.0,38880.0,0.13478823]
[1643758524501,0.001,38882.0,38881.0,0.23236238]
[1643758525603,0.201,38882.0,38881.0,0.23236238]
[1643758526201,0.201,38882.0,38880.0,0.13478823]
[1643758527246,0.46346553,38882.0,38880.0,0.13478823]
[1643758527452,0.42814331,38881.0,38880.0,0.13478823]
[1643758527646,0.52061601,38881.0,38880.0,0.13478823]
[1643758527845,0.2924727,38881.0,38880.0,0.13478823]
[1643758528047,0.2,38881.0,38880.0,0.13478823]
[1643758528450,0.2,38881.0,38879.0,0.12825101]
[1643758528451,0.23668293,38881.0,38879.0,0.12825101]
[1643758528648,0.28668293,38881.0,38879.0,0.12825101]
[1643758528847,0.25,38881.0,38879.0,0.12825101]
[1643758529047,0.57770745,38880.0,38879.0,0.12825101]
[1643758529246,0.57270745,38880.0,38879.0,0.12825101]
[1643758529447,0.65857384,38880.0,38879.0,0.12825101]
[1643758529748,0.65857384,38880.0,38877.0,0.01]
[1643758530405,0.35857384,38880.0,38878.0,0.064292]
[1643758530806,0.35969029,38880.0,38878.0,0.064292]
[1643758531006,0.2738239,38880.0,38878.0,0.064292]
[1643758531909,0.27270745,38880.0,38878.0,0.064292]
[1643758532909,0.3676021,38880.0,38878.0,0.064292]
[1643758534552,0.05111646,38881.0,38878.0,0.064292]
[1643758534749,0.00111646,38881.0,38878.0,0.064292]
[1643758534950,0.00111646,38881.0,38880.0,0.00623123]
[1643758535351,0.001,38882.0,38879.0,0.128567]
[1643758535552,0.00211646,38882.0,38879.0,0.128567]
[1643758536451,0.30211646,38882.0,38881.0,0.00623123]
[1643758536651,0.301,38882.0,38881.0,0.00623123]
[1643758536852,0.30211646,38882.0,38879.0,0.128567]
[1643758537895,0.301,38882.0,38879.0,0.128567]
[1643758538098,0.30211646,38882.0,38879.0,0.128567]
[1643758538698,0.35211646,38882.0,38879.0,0.128567]
[1643758538897,0.03719185,38881.0,38879.0,0.128567]
[1643758544552,0.03719185,38881.0,38879.0,0.12899708]
[1643758550253,0.3017235,38882.0,38879.0,0.12899708]
[1643758550652,0.3517235,38882.0,38879.0,0.12899708]
[1643758551050,0.35060705,38882.0,38879.0,0.12899708]
[1643758551248,0.3517235,38882.0,38879.0,0.12899708]
[1643758551449,0.35115406,38882.0,38879.0,0.12899708]
[1643758552151,0.35003761,38882.0,38879.0,0.12899708]
[1643758552351,0.35115406,38882.0,38879.0,0.12899708]
[1643758552554,0.0017235,38882.0,38881.0,0.00623123]
[1643758553007,0.0017235,38882.0,38881.0,0.35300723]
[1643758553210,0.0017235,38882.0,38881.0,0.4331145]
[1643758553407,0.00060705,38882.0,38881.0,0.4331145]
[1643758553611,0.00060705,38882.0,38881.0,0.0863385]
[1643758554109,0.00060705,38882.0,38881.0,0.1506175]
[1643758558352,0.00060705,38882.0,38881.0,0.07051023]
[1643758558947,0.25511772,38882.0,38881.0,0.07051023]
[1643758559649,0.25511772,38882.0,38881.0,0.064279]
[1643758559850,0.00060705,38882.0,38881.0,0.064279]
[1643758560151,0.20060705,38882.0,38881.0,0.064279]
[1643758560801,0.45010799,38882.0,38881.0,0.064279]
[1643758561203,0.20060705,38882.0,38881.0,0.064279]
[1643758565257,0.45060705,38882.0,38881.0,0.064279]
[1643758566059,0.00060705,38882.0,38881.0,0.07051023]
[1643758566264,0.00060705,38882.0,38881.0,0.16700952]
[1643758566557,0.00060705,38882.0,38881.0,0.51378552]
[1643758567159,0.00060705,38882.0,38881.0,0.47447949]
[1643758568004,0.00060705,38882.0,38881.0,0.82125549]
[1643758569501,0.00038404,38882.0,38881.0,0.82125549]
[1643758570203,0.00038404,38882.0,38881.0,1.06992146]
[1643758570604,0.00038404,38882.0,38881.0,1.17683613]
[1643758571657,0.00038404,38882.0,38881.0,0.92817016]
[1643758572056,0.00038404,38882.0,38881.0,0.82125549]
[1643758573457,0.00038404,38882.0,38881.0,1.08561733]
[1643758573658,0.00030606,38882.0,38881.0,1.192532]
[1643758573865,0.00030606,38882.0,38881.0,1.08561733]
[1643758574064,0.00030606,38882.0,38881.0,1.192532]
[1643758574261,0.00030606,38882.0,38881.0,0.92817016]
[1643758574658,0.00030606,38882.0,38881.0,0.82125549]
[1643758574859,8.281e-05,38882.0,38881.0,0.82125549]
[1643758575314,0.01000417,38885.0,38881.0,0.82125549]
[1643758575513,0.01000417,38885.0,38881.0,0.46824826]
[1643758575712,4.17e-06,38885.0,38884.0,0.00623123]
[1643758575912,4.17e-06,38885.0,38884.0,0.07050623]
[1643758586757,0.00162722,38886.0,38884.0,0.07050623]
[1643758586957,0.00026554,38886.0,38884.0,0.07050623]
[1643758587160,0.00162722,38886.0,38884.0,0.07050623]
[1643758588364,0.00026554,38886.0,38884.0,0.07050623]
[1643758588561,0.00026554,38886.0,38885.0,0.58815155]
[1643758588759,0.00026554,38886.0,38885.0,0.45480054]
[1643758589865,0.00018737,38886.0,38885.0,0.45480054]
[1643758591205,0.00132402,38887.0,38885.0,0.69090021]
[1643758591406,0.00132402,38887.0,38886.0,0.00623123]
[1643758591807,0.001,38888.0,38886.0,0.59168863]
[1643758592009,0.001,38888.0,38887.0,0.30589239]
[1643758592607,0.001,38888.0,38887.0,0.38842408]
[1643758594956,0.251,38888.0,38887.0,0.38842408]
[1643758595352,0.251,38888.0,38887.0,0.064268]
[1643758595557,0.4789122,38888.0,38887.0,0.064268]
[1643758595756,0.7289122,38888.0,38887.0,0.064268]
[1643758595958,0.7239122,38888.0,38886.0,0.01]
[1643758596157,0.55107142,38887.0,38886.0,0.01]
[1643758596357,0.80792094,38887.0,38886.0,0.01]
[1643758596756,0.91265861,38887.0,38879.0,0.00666131]
[1643758597156,0.28223696,38880.0,38879.0,0.00043008]
[1643758597355,0.49996936,38880.0,38879.0,0.00043008]
[1643758598907,0.49996936,38880.0,38879.0,0.07094831]
[1643758598908,0.2177324,38880.0,38879.0,0.07094831]
[1643758599107,0.22380336,38883.0,38879.0,0.07094831]
[1643758599108,0.21678626,38882.0,38879.0,0.07094831]
[1643758599310,0.01,38883.0,38881.0,0.00623123]
[1643758599507,0.01,38883.0,38876.0,0.07886819]
[1643758599707,0.25940032,38885.0,38876.0,0.07386819]
[1643758599907,0.21033128,38884.0,38876.0,0.07386819]
[1643758600112,0.44658542,38884.0,38876.0,0.07386819]
[1643758600509,0.44658542,38884.0,38882.0,0.064282]
[1643758600708,0.21188439,38883.0,38882.0,0.064282]
[1643758601657,0.20188439,38883.0,38882.0,0.064282]
[1643758601857,0.40188439,38883.0,38882.0,0.064282]
[1643758603659,0.20188439,38883.0,38882.0,0.064282]
[1643758603858,0.19264852,38884.0,38882.0,0.064282]
[1643758604660,0.46132018,38883.0,38882.0,0.064282]
[1643758604859,0.68221365,38883.0,38882.0,0.064282]
[1643758606316,0.3,38881.0,38878.0,0.01]
[1643758606520,0.23452262,38880.0,38878.0,0.01]
[1643758606715,0.38888034,38879.0,38878.0,0.0001]
[1643758606915,0.62340296,38879.0,38878.0,0.0001]
[1643758607114,0.06431203,38876.0,38869.0,0.00149663]
[1643758607314,0.09124966,38871.0,38865.0,0.128617]
[1643758607519,0.23452262,38870.0,38865.0,0.128617]
[1643758607715,0.3515,38870.0,38869.0,0.00149646]
[1643758608113,0.61451405,38870.0,38869.0,0.00149646]
[1643758608714,0.61451405,38870.0,38866.0,0.01]
[1643758608916,0.47109045,38869.0,38868.0,0.00149648]
[1643758609659,0.69352305,38869.0,38868.0,0.00149648]
[1643758609857,0.69352305,38869.0,38866.0,0.01]
[1643758610059,0.69352305,38869.0,38867.0,0.0014965]
[1643758610258,0.46452065,38868.0,38867.0,0.0014965]
[1643758610462,0.21452065,38868.0,38867.0,0.0014965]
[1643758610660,0.22109045,38869.0,38867.0,0.0014965]
[1643758610860,0.41398553,38869.0,38867.0,0.0014965]
[1643758611060,0.41398553,38869.0,38866.0,0.01]
[1643758611362,0.19476994,38869.0,38866.0,0.01149651]
[1643758611759,0.19476994,38869.0,38867.0,0.064313]
[1643758613205,0.54891179,38870.0,38867.0,0.064313]
[1643758613405,0.19478595,38869.0,38867.0,0.064313]
[1643758614003,0.30015781,38868.0,38867.0,0.064313]
[1643758614808,0.50190914,38868.0,38867.0,0.064313]
[1643758616207,0.30015781,38868.0,38867.0,0.064313]
[1643758616661,0.19340464,38868.0,38867.0,0.064313]
[1643758616860,0.00015781,38868.0,38867.0,0.064313]
[1643758617661,0.20015781,38868.0,38867.0,0.064313]
[1643758617862,0.00015781,38868.0,38867.0,0.064313]
[1643758618567,0.30015781,38868.0,38867.0,0.064313]
[1643758618766,0.53309762,38868.0,38867.0,0.064313]
[1643758619367,0.61800754,38868.0,38866.0,0.01]
[1643758619565,0.56141863,38867.0,38866.0,0.01149652]
[1643758619766,0.56141863,38867.0,38866.0,0.00149652]
[1643758619767,0.89290538,38867.0,38866.0,0.00149652]
[1643758620409,0.99290538,38867.0,38866.0,0.00149652]
[1643758620610,0.99290538,38867.0,38865.0,0.01]
[1643758620812,0.53254011,38866.0,38865.0,0.01149654]
[1643758621211,0.58254011,38866.0,38865.0,0.01149654]
[1643758621411,0.58254011,38866.0,38865.0,0.00649654]
[1643758621609,0.58254011,38866.0,38865.0,0.00149654]
[1643758621811,0.58254011,38866.0,38864.0,0.005]
[1643758622010,0.58254011,38866.0,38864.0,0.00649656]